fUSD/lending_fUSD_20260426
["ID","MTS","AMOUNT","RATE_DAILY","PERIOD"]
[421148972,1777166347609,155.0,7.699e-05,3]
[421148973,1777166406151,156.0,7.699e-05,3]
[421148974,1777166464796,156.0,7.699e-05,3]
[421148975,1777166527972,156.0,7.699e-05,3]
[421148976,1777166591110,156.0,7.699e-05,3]
[421148977,1777166647299,156.0,7.699e-05,3]
[421148978,1777166705875,156.0,7.699e-05,3]
[421148979,1777166768707,156.0,7.699e-05,3]
[421148980,1777166826694,156.0,7.699e-05,3]
[421148982,1777167032295,-257.0,8.219e-05,2]
[421148983,1777167032305,-228.4185,8.219e-05,2]
[421148984,1777167032318,-51.5815,8.219e-05,2]
[421148985,1777167032328,-301.9019895,8.222e-05,2]
[421148986,1777167032338,-1066.63818915,8.224e-05,2]
[421148987,1777167032351,-1433.36181085,8.224e-05,2]
[421148988,1777167032361,-2500.0,8.226e-05,2]
[421148989,1777167032371,-193.42,8.378e-05,2]
[421148990,1777167032381,-187.81,8.378e-05,2]
[421148991,1777167032392,-197.48,8.43e-05,2]
[421148992,1777167032402,-1200.0,8.498e-05,2]
[421148993,1777167032413,-300.0,8.498e-05,2]
[421148994,1777167032423,-300.0,8.498e-05,2]
[421148995,1777167032432,-300.0,8.498e-05,2]
[421148996,1777167032441,-42443.9953,8.499e-05,2]
[421148997,1777167032451,-364.0,8.548e-05,2]
[421148999,1777167032461,-197.0,8.577e-05,2]
[421149001,1777167032471,-183.0,8.582e-05,2]
[421149003,1777167032482,-393.0,8.594e-05,2]
[421149005,1777167032492,-150.0,8.597e-05,2]
[421149007,1777167032501,-500.0,8.598e-05,2]
[421149009,1777167032511,-431.31314151,8.598e-05,2]
[421149011,1777167032521,-196.37199307,8.598e-05,2]
[421149013,1777167032531,-500.0,8.598e-05,2]
[421149015,1777167032541,-518.1316577,8.598e-05,2]
[421149017,1777167032551,-308.07308376,8.598e-05,2]
[421149019,1777167032561,-500.0,8.598e-05,2]
[421149021,1777167032571,-500.0,8.598e-05,2]
[421149023,1777167032581,-500.0,8.598e-05,2]
[421149025,1777167032591,-500.0,8.598e-05,2]
[421149027,1777167032601,-500.0,8.598e-05,2]
[421149029,1777167032611,-500.0,8.598e-05,2]
[421149031,1777167032620,-500.0,8.598e-05,2]
[421149033,1777167032630,-500.0,8.598e-05,2]
[421149035,1777167032640,-500.0,8.598e-05,2]
[421149037,1777167032650,-500.0,8.598e-05,2]
[421149039,1777167032659,-500.0,8.598e-05,2]
[421149041,1777167032669,-500.0,8.598e-05,2]
[421149042,1777167032678,-500.0,8.598e-05,2]
[421149043,1777167032688,-500.0,8.598e-05,2]
[421149044,1777167032697,-500.0,8.598e-05,2]
[421149045,1777167032707,-500.0,8.598e-05,2]
[421149046,1777167032716,-500.0,8.598e-05,2]
[421149047,1777167032725,-500.0,8.598e-05,2]
[421149049,1777167032735,-500.0,8.598e-05,2]
[421149051,1777167032745,-500.0,8.598e-05,2]
[421149053,1777167032754,-500.0,8.598e-05,2]
[421149055,1777167032764,-500.0,8.598e-05,2]
[421149057,1777167032773,-500.0,8.598e-05,2]
[421149059,1777167032782,-500.0,8.598e-05,2]
[421149062,1777167032792,-500.0,8.598e-05,2]
[421149063,1777167032802,-500.0,8.598e-05,2]
[421149066,1777167032812,-500.0,8.598e-05,2]
[421149068,1777167032822,-500.0,8.598e-05,2]
[421149069,1777167032832,-500.0,8.598e-05,2]
[421149071,1777167032842,-500.0,8.598e-05,2]
[421149073,1777167032852,-500.0,8.598e-05,2]
[421149075,1777167032862,-500.0,8.598e-05,2]
[421149077,1777167032872,-500.0,8.598e-05,2]
[421149078,1777167032882,-500.0,8.598e-05,2]
[421149079,1777167032892,-500.0,8.598e-05,2]
[421149080,1777167032902,-500.0,8.598e-05,2]
[421149081,1777167032911,-500.0,8.598e-05,2]
[421149082,1777167032921,-500.0,8.598e-05,2]
[421149083,1777167032930,-500.0,8.598e-05,2]
[421149084,1777167032940,-500.0,8.598e-05,2]
[421149085,1777167032950,-500.0,8.598e-05,2]
[421149086,1777167032959,-500.0,8.598e-05,2]
[421149087,1777167032969,-500.0,8.598e-05,2]
[421149088,1777167032979,-500.0,8.598e-05,2]
[421149089,1777167032988,-500.0,8.598e-05,2]
[421149090,1777167032997,-500.0,8.598e-05,2]
[421149091,1777167033007,-500.0,8.598e-05,2]
[421149092,1777167033017,-500.0,8.598e-05,2]
[421149093,1777167033026,-500.0,8.598e-05,2]
[421149094,1777167033036,-542.71015587,8.598e-05,2]
[421149095,1777167033046,-500.0,8.598e-05,2]
[421149096,1777167033055,-500.0,8.598e-05,2]
[421149097,1777167033066,-500.0,8.598e-05,2]
[421149098,1777167033076,-500.0,8.598e-05,2]
[421149099,1777167033086,-500.0,8.598e-05,2]
[421149100,1777167033096,-500.0,8.598e-05,2]
[421149101,1777167033106,-500.0,8.598e-05,2]
[421149102,1777167033115,-500.0,8.598e-05,2]
[421149103,1777167033125,-500.0,8.598e-05,2]
[421149104,1777167033134,-500.0,8.598e-05,2]
[421149105,1777167033144,-500.0,8.598e-05,2]
[421149106,1777167033153,-500.0,8.598e-05,2]
[421149107,1777167033163,-500.0,8.598e-05,2]
[421149108,1777167033172,-500.0,8.598e-05,2]
[421149109,1777167033182,-500.0,8.598e-05,2]
[421149110,1777167033192,-500.0,8.598e-05,2]
[421149111,1777167033202,-500.0,8.598e-05,2]
[421149112,1777167033211,-500.0,8.598e-05,2]
[421149113,1777167033221,-500.0,8.598e-05,2]
[421149114,1777167033231,-500.0,8.598e-05,2]
[421149115,1777167033241,-500.0,8.598e-05,2]
[421149116,1777167033251,-500.0,8.598e-05,2]
[421149117,1777167033261,-500.0,8.598e-05,2]
[421149118,1777167033271,-500.0,8.598e-05,2]
[421149119,1777167033280,-500.0,8.598e-05,2]
[421149120,1777167033290,-500.0,8.598e-05,2]
[421149121,1777167033300,-500.0,8.598e-05,2]
[421149122,1777167033311,-500.0,8.598e-05,2]
[421149123,1777167033321,-500.0,8.598e-05,2]
[421149124,1777167033332,-500.0,8.598e-05,2]
[421149125,1777167033342,-515.086233,8.598e-05,2]
[421149126,1777167033351,-500.0,8.598e-05,2]
[421149127,1777167033361,-500.0,8.598e-05,2]
[421149128,1777167033371,-500.0,8.598e-05,2]
[421149129,1777167033381,-500.0,8.598e-05,2]
[421149130,1777167033390,-500.0,8.598e-05,2]
[421149131,1777167033400,-612.87715583,8.598e-05,2]
[421149132,1777167033410,-500.0,8.598e-05,2]
[421149133,1777167033420,-500.0,8.598e-05,2]
[421149134,1777167033430,-1407.514,8.598e-05,2]
[421149135,1777167033440,-190.022,8.598e-05,2]
[421149136,1777167033450,-3058.64837661,8.599e-05,2]
[421149137,1777167033460,-153.84497306,8.599e-05,2]
[421149138,1777167033470,-561.0,8.599e-05,2]
[421149139,1777167033479,-515.0,8.6e-05,2]
[421149140,1777167033489,-375.64,8.656e-05,2]
[421149141,1777167033499,-458.879775,8.661e-05,2]
[421149142,1777167033509,-500.0,8.673e-05,2]
[421149143,1777167033518,-500.34030046,8.673e-05,2]
[421149144,1777167033528,-500.0,8.673e-05,2]
[421149145,1777167033538,-500.0,8.673e-05,2]
[421149146,1777167033548,-500.0,8.673e-05,2]
[421149147,1777167033559,-500.0,8.673e-05,2]
[421149148,1777167033568,-500.0,8.673e-05,2]
[421149149,1777167033579,-151.0,8.697e-05,2]
[421149150,1777167033588,-500.0,8.699e-05,2]
[421149151,1777167033599,-197.60494909,8.699e-05,2]
[421149152,1777167033609,-500.0,8.699e-05,2]
[421149153,1777167033619,-318.00172858,8.699e-05,2]
[421149154,1777167033630,-500.0,8.699e-05,2]
[421149155,1777167033640,-500.0,8.699e-05,2]
[421149156,1777167033650,-500.0,8.699e-05,2]
[421149157,1777167033660,-500.0,8.699e-05,2]
[421149158,1777167033670,-495.10335022,8.699e-05,2]
[421149159,1777167033680,-257194.73030082,8.7e-05,2]
[421149160,1777167033695,-5685.08004227,8.7e-05,2]
[421149161,1777167033707,-605.6100191,8.7e-05,2]
[421149162,1777167033719,-805.47043148,8.7e-05,2]
[421149163,1777167033733,-4461.9664004,8.7e-05,2]
[421149164,1777167033746,-1606.12387378,8.7e-05,2]
[421149165,1777167033758,-525.79675041,8.7e-05,2]
[421149166,1777167033776,-3403.37146852,8.7e-05,2]
[421149167,1777167033787,-552.0,8.7e-05,2]
[421149168,1777167033799,-958.35718436,8.7e-05,2]
[421149169,1777167038397,-499.83800957,8.7e-05,2]
[421149170,1777167038419,-1020.29583807,8.7e-05,2]
[421149172,1777167038439,-2000.0,8.7e-05,2]
[421149175,1777167038451,-31736.52737083,8.7e-05,2]
[421149178,1777167038463,-14860.68728384,8.7e-05,2]
[421149180,1777167038475,-70001.8631633,8.7e-05,2]
[421149181,1777167038602,-526.50344134,8.7e-05,2]
[421149182,1777167038614,-306.76621546,8.7e-05,2]
[421149183,1777167038800,-16092.3183417,8.7e-05,2]
[421149184,1777167038812,-554.09951072,8.7e-05,2]
[421149185,1777167038824,-564.0886184,8.7e-05,2]
[421149186,1777167038836,-3572.87009396,8.7e-05,2]
[421149187,1777167038847,-2093.68970089,8.7e-05,2]
[421149188,1777167038859,-1094.0,8.7e-05,2]
[421149189,1777167038871,-1381.09443239,8.7e-05,2]
[421149246,1777167040426,-332.11298935,8.7e-05,2]
[421149247,1777167040438,-455.28347007,8.7e-05,2]
[421149248,1777167040611,-1059.6477196,8.7e-05,2]
[421149249,1777167040623,-378.66,8.7e-05,2]
[421149250,1777167040793,-538561.38393522,8.7e-05,2]
[421149251,1777167040803,-1900.0,8.7e-05,3]
[421149252,1777167040813,-2900.0,8.8e-05,3]
[421149253,1777167040823,-500.0,8.872e-05,2]
[421149254,1777167040833,-3900.0,8.9e-05,3]
[421149255,1777167040843,-4900.0,9e-05,3]
[421149256,1777167040853,-2500.0,9.041e-05,2]
[421149257,1777167040862,-251.945458,9.041e-05,2]
[421149258,1777167040872,-2500.0,9.041e-05,2]
[421149259,1777167040882,-300.0,9.041e-05,2]
[421149260,1777167040892,-193.0,9.041e-05,2]
[421149261,1777167040902,-250.0,9.041e-05,2]
[421149262,1777167040912,-250.0,9.041e-05,2]
[421149263,1777167040921,-500.0,9.146e-05,2]
[421149264,1777167040931,-150.0,9.208e-05,2]
[421149265,1777167040942,-1680.0,9.348e-05,2]
[421149266,1777167040951,-420.0,9.348e-05,2]
[421149267,1777167040961,-420.0,9.348e-05,2]
[421149268,1777167040971,-213.0,9.457e-05,2]
[421149269,1777167040981,-500.0,9.945e-05,2]
[421149270,1777167040990,-193.58329126,0.0001,2]
[421149271,1777167041000,-166.34634371,0.0001,2]
[421149272,1777167041009,-199.44009631,0.0001,2]
[421149273,1777167041018,-202.35938306,0.0001,2]
[421149274,1777167041028,-689.0,0.00010282,2]
[421149275,1777167041037,-587.0,0.00010282,2]
[421149276,1777167041047,-791.9563355,0.00010335,2]
[421149277,1777167041057,-229.99,0.00010989,2]
[421149278,1777167041067,-164.0,0.00011311,2]
[421149279,1777167041077,-150.0,0.0001151,2]
[421149280,1777167041087,-162.24807931,0.00011562,2]
[421149281,1777167041097,-12722.90630196,0.00011584,2]
[421149282,1777167041106,-338.14,0.000119,2]
[421149283,1777167041116,-150.0,0.00012329,2]
[421149284,1777167041126,-150.0,0.00012329,2]
[421149285,1777167041138,-150.0,0.00012329,2]
[421149286,1777167041147,-150.0,0.00012329,2]
[421149287,1777167041157,-210.0695,0.00012329,2]
[421149288,1777167041168,-150.0,0.00012329,2]
[421149289,1777167041178,-150.0,0.00012329,2]
[421149290,1777167041188,-468.0,0.0001264,5]
[421149291,1777167041197,-150.0,0.00012671,2]
[421149292,1777167041207,-453.0,0.00012856,5]
[421149293,1777167041217,-364.0,0.00012856,5]
[421149294,1777167041228,-250.0,0.00013,2]
[421149295,1777167041251,-150.0,0.00013014,2]
[421149296,1777167041263,-1219.0,0.00013204,2]
[421149297,1777167041273,-2475.0,0.00013204,2]
[421149298,1777167041283,-6044.062,0.00013204,2]
[421149299,1777167041294,-150.0,0.00013356,2]
[421149300,1777167041305,-533.09,0.00013359,2]
[421149301,1777167041316,-505.0,0.000136,2]
[421149302,1777167041326,-500.0,0.00013673,2]
[421149303,1777167041336,-151.0,0.00013697,2]
[421149304,1777167041347,-500.0,0.00013698,2]
[421149305,1777167041357,-500.0,0.00013698,2]
[421149306,1777167041367,-500.0,0.00013698,2]
[421149307,1777167041378,-500.0,0.00013698,2]
[421149308,1777167041388,-500.0,0.00013698,2]
[421149309,1777167041398,-500.0,0.00013698,2]
[421149310,1777167041408,-500.0,0.00013698,2]
[421149311,1777167041418,-500.0,0.00013698,2]
[421149312,1777167041428,-500.0,0.00013698,2]
[421149313,1777167041438,-500.0,0.00013698,2]
[421149314,1777167041448,-500.0,0.00013698,2]
[421149315,1777167041459,-500.0,0.00013698,2]
[421149316,1777167041469,-500.0,0.00013698,2]
[421149317,1777167041479,-500.0,0.00013698,2]
[421149318,1777167041489,-500.0,0.00013698,2]
[421149319,1777167041499,-256.99,0.00013698,2]
[421149320,1777167041509,-500.0,0.00013698,2]
[421149321,1777167041520,-500.0,0.00013698,2]
[421149322,1777167041530,-500.0,0.00013698,2]
[421149323,1777167041541,-500.0,0.00013698,2]
[421149324,1777167041550,-500.97908246,0.00013698,2]
[421149325,1777167041561,-268.13270614,0.00013699,2]
[421149326,1777167041571,-153.95685762,0.00013699,2]
[421149327,1777167041580,-182.93100001,0.00013699,2]
[421149328,1777167041590,-500.0,0.00013699,2]
[421149329,1777167041600,-500.0,0.00013699,2]
[421149330,1777167041610,-500.0,0.00013699,2]
[421149331,1777167041627,-156.6,0.000137,2]
[421149332,1777167041638,-254656.46,0.000137,2]
[421149333,1777167041648,-151.0,0.000137,2]
[421149334,1777167041659,-151.0,0.000137,2]
[421149335,1777167041669,-294.39168,0.000137,2]
[421149336,1777167041679,-294.39168,0.000137,2]
[421149337,1777167041690,-294.39168,0.000137,2]
[421149338,1777167041700,-294.39168,0.000137,2]
[421149339,1777167041711,-608.630187,0.000137,2]
[421149340,1777167041722,-608.630187,0.000137,2]
[421149341,1777167041733,-608.630187,0.000137,2]
[421149342,1777167041743,-608.630187,0.000137,2]
[421149343,1777167041753,-151.0,0.000137,2]
[421149344,1777167041764,-151.0,0.000137,2]
[421149345,1777167041775,-151.0,0.000137,2]
[421149346,1777167041785,-256.742287,0.000137,2]
[421149347,1777167041795,-256.99,0.00013972,2]
[421149348,1777167041807,-26484.24488311,0.0001399,2]
[421149349,1777167041817,-257.0,0.00014246,2]
[421149350,1777167041828,-151.0,0.00014386,2]
[421149351,1777167041839,-156.587,0.00014386,2]
[421149352,1777167041850,-196.37227449,0.00014386,2]
[421149353,1777167041861,-823.0,0.00015,2]
[421149354,1777167041872,-300.0,0.00015,2]
[421149355,1777167041882,-280.0,0.00015352,2]
[421149356,1777167041893,-505.0,0.00015971,4]
[421149357,1777167041904,-162.24807931,0.00016,3]
[421149358,1777167041914,-6406.93,0.00016116,2]
[421149359,1777167041924,-2208.567,0.00016204,2]
[421149360,1777167041935,-500.0,0.00016438,2]
[421149361,1777167041947,-500.0,0.00016521,2]
[421149362,1777167041957,-205.40357215,0.00016833,48]
[421149363,1777167041967,-1000.0,0.00016986,2]
[421149364,1777167041978,-350.0,0.00017,2]
[421149365,1777167041988,-1500.0,0.00017534,2]
[421149366,1777167041999,-151.0,0.00018023,2]
[421149367,1777167042014,-500.0,0.00018025,2]
[421149368,1777167042026,-500.0,0.00018025,2]
[421149369,1777167042037,-500.0,0.00018025,2]
[421149370,1777167042048,-151.0,0.00018026,2]
[421149371,1777167042060,-294.39168,0.00018026,2]
[421149372,1777167042070,-294.39168,0.00018026,2]
[421149373,1777167042081,-294.39168,0.00018026,2]
[421149374,1777167042091,-294.39168,0.00018026,2]
[421149375,1777167042102,-608.630187,0.00018026,2]
[421149376,1777167042112,-608.630187,0.00018026,2]
[421149377,1777167042123,-608.630187,0.00018026,2]
[421149378,1777167042134,-608.630187,0.00018026,2]
[421149379,1777167042145,-151.0,0.00018026,2]
[421149380,1777167042156,-151.0,0.00018026,2]
[421149381,1777167042166,-151.0,0.00018026,2]
[421149382,1777167042177,-8565.75555911,0.00018026,5]
[421149383,1777167042188,-8882.6885148,0.00018026,5]
[421149384,1777167042198,-9211.34798985,0.00018026,5]
[421149385,1777167042209,-9552.16786547,0.00018026,5]
[421149386,1777167042220,-9905.5980765,0.00018026,5]
[421149387,1777167042230,-10272.10520533,0.00018026,5]
[421149388,1777167042241,-10652.17309792,0.00018026,5]
[421149389,1777167042252,-151.0,0.00018026,5]
[421149390,1777167042263,-11046.30350255,0.00018026,5]
[421149391,1777167042273,-11455.01673214,0.00018026,5]
[421149392,1777167042284,-151.0,0.00018026,5]
[421149393,1777167042294,-11878.85235123,0.00018026,5]
[421149394,1777167042305,-12318.36988823,0.00018026,5]
[421149395,1777167042316,-12774.14957409,0.00018026,5]
[421149396,1777167042327,-13246.79310833,0.00018026,5]
[421149397,1777167042338,-13736.92445334,0.00018026,5]
[421149398,1777167042350,-254.12216269,0.00018026,5]
[421149399,1777167042362,-567.32506594,0.00018082,2]
[421149400,1777167042372,-350.0,0.00018111,2]
[421149401,1777167042382,-350.0,0.00018153,3]
[421149402,1777167042393,-151.0,0.00018282,2]
[421149403,1777167042409,-505.0,0.00018343,6]
[421149404,1777167042419,-155.95167166,0.00018355,2]
[421149405,1777167042430,-161.0,0.0001849,2]
[421149406,1777167042440,-500.0,0.00018499,2]
[421149407,1777167042452,-150.0,0.00018499,2]
[421149408,1777167042464,-150.0,0.00018499,2]
[421149409,1777167042475,-150.0,0.00018499,2]
[421149410,1777167042485,-298.71313926,0.00018499,2]
[421149411,1777167042495,-153.27330215,0.000185,2]
[421149412,1777167042506,-2000.0,0.000185,2]
[421149413,1777167042517,-2000.0,0.000185,2]
[421149414,1777167042528,-2000.0,0.000185,2]
[421149415,1777167042539,-2000.0,0.000185,2]
[421149416,1777167042550,-2000.0,0.000185,2]
[421149417,1777167042561,-2000.0,0.000185,2]
[421149418,1777167042572,-238.319848,0.00018816,2]
[421149419,1777167042583,-160.0,0.00018816,7]
[421149420,1777167042594,-164.205953,0.00018816,7]
[421149421,1777167042605,-168.411906,0.00018816,7]
[421149422,1777167042616,-160.0,0.00018816,2]
[421149423,1777167042626,-163.205413,0.00018816,2]
[421149424,1777167042637,-166.410827,0.00018816,2]
[421149425,1777167042649,-347.355734,0.00018816,7]
[421149426,1777167042663,-177.569511,0.00018816,2]
[421149427,1777167042673,-350.0,0.00018825,4]
[421149428,1777167042683,-155.95167166,0.00018869,2]
[421149429,1777167042695,-400.0,0.00019,2]
[421149430,1777167042706,-350.0,0.00019041,5]
[421149431,1777167042717,-350.0,0.00019159,6]
[421149432,1777167042727,-3000.0,0.00019178,2]
[421149433,1777167042737,-3000.0,0.00019178,7]
[421149434,1777167042748,-151.0,0.00019197,2]
[421149435,1777167042759,-500.0,0.00019199,2]
[421149436,1777167042771,-500.0,0.00019199,2]
[421149437,1777167042782,-500.0,0.00019199,2]
[421149438,1777167042792,-171453.60591098,0.000192,2]
[421149441,1777167044317,-83202.85408902,0.000192,2]
[421149442,1777167044327,-151.0,0.000192,2]
[421149443,1777167044337,-151.0,0.000192,2]
[421149444,1777167044347,-151.0,0.000192,2]
[421149445,1777167044357,-151.0,0.000192,2]
[421149446,1777167044366,-151.0,0.000192,2]
[421149447,1777167044376,-284.190136,0.000192,2]
[421149448,1777167044388,-294.39168,0.000192,2]
[421149449,1777167044398,-294.39168,0.000192,2]
[421149450,1777167044407,-294.39168,0.000192,2]
[421149451,1777167044417,-294.39168,0.000192,2]
[421149452,1777167044426,-608.630187,0.000192,2]
[421149453,1777167044436,-608.630187,0.000192,2]
[421149454,1777167044446,-608.630187,0.000192,2]
[421149455,1777167044456,-608.630187,0.000192,2]
[421149456,1777167044466,-151.0,0.000192,2]
[421149457,1777167044476,-151.0,0.000192,2]
[421149458,1777167044486,-151.0,0.000192,2]
[421149459,1777167044496,-350.0,0.00019304,2]
[421149460,1777167044506,-155.95167166,0.00019383,2]
[421149461,1777167044516,-5800.0,0.00019514,2]
[421149462,1777167044527,-5800.0,0.00019523,2]
[421149463,1777167044537,-223.917209,0.00019757,7]
[421149464,1777167044548,-222.552836,0.00019757,2]
[421149465,1777167044559,-500.0,0.0001979,2]
[421149466,1777167044568,-155.95167166,0.00019897,2]
[421149467,1777167044578,-700.0,0.00019928,4]
[421149468,1777167044588,-160.0,0.0002,2]
[421149469,1777167044598,-1768.0,0.0002,2]
[421149470,1777167044608,-213.0,0.0002,2]
[421149471,1777167044618,-7199.11,0.0002,30]
[421149472,1777167044628,-272.0,0.0002,2]
[421149473,1777167044638,-403.0,0.0002,2]
[421149474,1777167044653,-434.0,0.0002,2]
[421149475,1777167044664,-200.0,0.0002,10]
[421149476,1777167044674,-170.0,0.0002,2]
[421149477,1777167044684,-200.0,0.0002,2]
[421149478,1777167044693,-435.0,0.0002,2]
[421149479,1777167044703,-300.0,0.000201,10]
[421149480,1777167044713,-350.0,0.00020171,5]
[421149481,1777167044723,-500.0,0.00020384,2]
[421149482,1777167044733,-155.95167166,0.00020411,2]
[421149483,1777167044743,-365.85720439,0.00020418,76]
[421149484,1777167044753,-1037.97,0.00020548,2]
[421149485,1777167044764,-505.0,0.00020714,8]
[421149486,1777167044773,-155.95167166,0.00020925,2]
[421149487,1777167044783,-500.0,0.00020995,2]
[421149488,1777167044794,-160.0,0.00021,2]
[421149489,1777167044804,-1768.0,0.00021,2]
[421149490,1777167044814,-213.0,0.00021,2]
[421149491,1777167044825,-272.0,0.00021,2]
[421149492,1777167044835,-403.0,0.00021,2]
[421149493,1777167044845,-434.0,0.00021,2]
[421149494,1777167044855,-435.0,0.00021,2]
[421149495,1777167044865,-151.0,0.00021007,2]
[421149496,1777167044875,-280.0,0.00021041,3]
[421149497,1777167044885,-942.56880283,0.00021291,2]
[421149498,1777167044895,-155.95167166,0.00021439,2]
[421149499,1777167044906,-500.0,0.00021625,2]
[421149500,1777167044915,-500.0,0.00021644,2]
[421149501,1777167044926,-3452.45788765,0.0002169,87]
[421149502,1777167044936,-150.0,0.00021918,2]
[421149503,1777167044947,-155.95167166,0.00021953,2]
[421149504,1777167044957,-160.0,0.00022,2]
[421149505,1777167044967,-1768.0,0.00022,2]
[421149506,1777167044977,-213.0,0.00022,2]
[421149507,1777167044987,-272.0,0.00022,2]
[421149508,1777167044997,-403.0,0.00022,2]
[421149509,1777167045007,-434.0,0.00022,2]
[421149510,1777167045017,-435.0,0.00022,2]
[421149511,1777167045026,-245.54,0.00022093,30]
[421149512,1777167045036,-151.0,0.00022097,2]
[421149513,1777167045046,-500.0,0.00022099,2]
[421149514,1777167045056,-500.0,0.00022099,2]
[421149515,1777167045067,-500.0,0.00022099,2]
[421149516,1777167045077,-35270.03344795,0.000221,7]
[421149517,1777167045090,-163203.95985587,0.000221,7]
[421149518,1777167045681,-178.48750805,0.00010335,2]
[421149519,1777167045690,-416.883,0.00013204,2]
[421149520,1777167045700,-756.0,0.00016833,2]
[421149521,1777167045710,-56182.46669618,0.000221,7]
[421149522,1777167045720,-151.0,0.000221,2]
[421149523,1777167045730,-151.0,0.000221,2]
[421149524,1777167045740,-247.757011,0.000221,2]
[421149525,1777167045749,-162.24807931,0.000221,7]
[421149526,1777167045759,-151.0,0.000221,2]
[421149527,1777167045769,-294.39168,0.000221,2]
[421149528,1777167045779,-294.39168,0.000221,2]
[421149529,1777167045788,-294.39168,0.000221,2]
[421149530,1777167045798,-294.39168,0.000221,2]
[421149531,1777167045807,-608.630187,0.000221,2]
[421149532,1777167045817,-608.630187,0.000221,2]
[421149533,1777167045827,-608.630187,0.000221,2]
[421149534,1777167045836,-608.630187,0.000221,2]
[421149535,1777167045846,-151.0,0.000221,2]
[421149536,1777167045856,-151.0,0.000221,2]
[421149537,1777167045866,-151.0,0.000221,2]
[421149538,1777167045876,-36294.0,0.00022148,2]
[421149539,1777167045885,-500.0,0.00022274,2]
[421149540,1777167045895,-155.95167166,0.00022467,2]
[421149541,1777167045904,-162.24807931,0.000228,7]
[421149542,1777167045914,-500.0,0.00022942,2]
[421149543,1777167045925,-533.09,0.00022963,2]
[421149544,1777167045936,-155.95167166,0.00022981,2]
[421149545,1777167045945,-160.0,0.00023,2]
[421149546,1777167045955,-1768.0,0.00023,2]
[421149547,1777167045966,-213.0,0.00023,2]
[421149548,1777167045977,-272.0,0.00023,2]
[421149550,1777167045987,-403.0,0.00023,2]
[421149551,1777167045997,-434.0,0.00023,2]
[421149552,1777167046007,-435.0,0.00023,2]
[421149553,1777167046017,-505.0,0.00023086,10]
[421149554,1777167046027,-162.24807931,0.000234,7]
[421149555,1777167046037,-155.95167166,0.00023495,2]
[421149556,1777167046047,-150.0,0.00023562,2]
[421149557,1777167046056,-500.0,0.00023631,2]
[421149558,1777167046066,-182.66,0.000239,7]
[421149559,1777167046075,-182.66,0.000239,7]
[421149560,1777167046085,-160.0,0.00024,2]
[421149561,1777167046095,-1768.0,0.00024,2]
[421149562,1777167046104,-213.0,0.00024,2]
[421149563,1777167046114,-272.0,0.00024,2]
[421149564,1777167046125,-403.0,0.00024,2]
[421149565,1777167046134,-434.0,0.00024,2]
[421149566,1777167046143,-435.0,0.00024,2]
[421149567,1777167046155,-155.95167166,0.00024009,2]
[421149568,1777167046165,-245.54,0.00024186,60]
[421149569,1777167046174,-500.0,0.0002434,2]
[421149570,1777167046184,-151.0,0.00024397,7]
[421149571,1777167046193,-500.0,0.00024399,2]
[421149572,1777167046203,-500.0,0.00024399,2]
[421149574,1777167046213,-500.0,0.00024399,2]
[421149575,1777167046222,-70475.73560459,0.000244,7]